[Event "Early-Titled-Tuesday-Blitz-February-20-2024"]
[Site "Chess.com"]
[Date "2024.02.20"]
[Round "8"]
[White "Schachmalanders"]
[Black "wqws"]
[Result "0-1"]
[WhiteElo "2473"]
[BlackElo "2678"]
[TimeControl "180+1"]
[EndTime "9:32:25 PST"]
[Termination "wqws won by resignation"]

1. e4 {[%clk 0:03:00.9]} 1... e5 {[%clk 0:02:53.8]} 2. Nf3 {[%clk 0:02:58.9]}
2... Nc6 {[%clk 0:02:54]} 3. Bc4 {[%clk 0:02:58.9]} 3... Nf6 {[%clk 0:02:53.5]}
4. d3 {[%clk 0:02:57.4]} 4... Be7 {[%clk 0:02:53.5]} 5. O-O {[%clk 0:02:56.7]}
5... O-O {[%clk 0:02:54.4]} 6. c3 {[%clk 0:02:56.4]} 6... d6 {[%clk 0:02:54.7]}
7. h3 {[%clk 0:02:54.2]} 7... Na5 {[%clk 0:02:54.2]} 8. Bb5 {[%clk 0:02:53.4]}
8... c5 {[%clk 0:02:54.4]} 9. Re1 {[%clk 0:02:49.6]} 9... a6 {[%clk 0:02:54.6]}
10. Ba4 {[%clk 0:02:49.5]} 10... b5 {[%clk 0:02:55.2]} 11. Bc2 {[%clk
0:02:49.8]} 11... Rb8 {[%clk 0:02:55.7]} 12. Nbd2 {[%clk 0:02:46.2]} 12... b4
{[%clk 0:02:55.2]} 13. Nf1 {[%clk 0:02:45.5]} 13... Be6 {[%clk 0:02:52.7]} 14.
Ng3 {[%clk 0:02:41.4]} 14... Qb6 {[%clk 0:02:44.9]} 15. Nf5 {[%clk 0:02:37.2]}
15... Rfe8 {[%clk 0:02:43.1]} 16. Nxe7+ {[%clk 0:02:35.6]} 16... Rxe7 {[%clk
0:02:43.4]} 17. d4 {[%clk 0:02:35.9]} 17... b3 {[%clk 0:02:38.2]} 18. axb3
{[%clk 0:02:34.7]} 18... Nxb3 {[%clk 0:02:37.8]} 19. Bxb3 {[%clk 0:02:34.3]}
19... Bxb3 {[%clk 0:02:37.3]} 20. Qd3 {[%clk 0:02:31.8]} 20... exd4 {[%clk
0:02:26.4]} 21. cxd4 {[%clk 0:02:24.1]} 21... c4 {[%clk 0:02:26.2]} 22. Qb1
{[%clk 0:02:24]} 22... h6 {[%clk 0:02:25.4]} 23. e5 {[%clk 0:02:18.5]} 23...
dxe5 {[%clk 0:02:24.4]} 24. dxe5 {[%clk 0:02:17.6]} 24... Nd5 {[%clk 0:02:24.2]}
25. Qe4 {[%clk 0:02:17.2]} 25... Nb4 {[%clk 0:02:22]} 26. Be3 {[%clk 0:02:15.3]}
26... Qe6 {[%clk 0:02:15.5]} 27. Bc5 {[%clk 0:02:05.9]} 27... Nc2 {[%clk
0:01:59.9]} 28. Bxe7 {[%clk 0:02:03.6]} 28... Nxe1 {[%clk 0:01:58.6]} 29. Bd6
{[%clk 0:01:56.9]} 29... Nxf3+ {[%clk 0:01:53.4]} 30. Qxf3 {[%clk 0:01:57.8]}
30... Re8 {[%clk 0:01:47.1]} 31. Rxa6 {[%clk 0:01:53.7]} 31... Qg6 {[%clk
0:01:35.2]} 32. Kh2 {[%clk 0:01:44.1]} 32... Bc2 {[%clk 0:01:28.1]} 33. Qg4
{[%clk 0:01:39]} 33... Qxg4 {[%clk 0:01:23.3]} 34. hxg4 {[%clk 0:01:39.1]} 34...
Bd3 {[%clk 0:01:24.2]} 35. f4 {[%clk 0:01:35]} 35... c3 {[%clk 0:01:22.8]} 36.
Rb6 {[%clk 0:01:27.6]} 36... c2 {[%clk 0:01:21.9]} 37. Rc6 {[%clk 0:01:27.9]}
37... Ra8 {[%clk 0:01:12.6]} 38. Ba3 {[%clk 0:01:25.7]} 38... Ra4 {[%clk
0:01:11.6]} 39. Kg3 {[%clk 0:01:24.4]} 39... Bc4 {[%clk 0:01:05.6]} 40. b3
{[%clk 0:01:21.3]} 40... Bxb3 {[%clk 0:01:05.5]} 41. Bc1 {[%clk 0:01:13.4]}
41... Ra1 {[%clk 0:01:05.3]} 42. Be3 {[%clk 0:01:09.3]} 42... Ra2 {[%clk
0:00:56.2]} 43. f5 {[%clk 0:01:05.8]} 43... Bd5 {[%clk 0:00:49.6]} 44. Rc8+
{[%clk 0:01:02]} 44... Kh7 {[%clk 0:00:49.2]} 45. Bc1 {[%clk 0:00:59.5]} 45...
Be4 {[%clk 0:00:42.1]} 46. e6 {[%clk 0:00:57.8]} 46... fxe6 {[%clk 0:00:40.2]}
47. fxe6 {[%clk 0:00:58]} 47... Ra7 {[%clk 0:00:28.7]} 48. Kf4 {[%clk
0:00:55.8]} 48... Bg6 {[%clk 0:00:26.3]} 49. Ke5 {[%clk 0:00:53.5]} 49... Ra1
{[%clk 0:00:24.8]} 50. Bb2 {[%clk 0:00:43.2]} 50... Re1+ {[%clk 0:00:24.2]} 51.
Kd6 {[%clk 0:00:42]} 51... Rb1 {[%clk 0:00:24.1]} 52. Ba3 {[%clk 0:00:41]} 52...
Rg1 {[%clk 0:00:21.5]} 53. e7 {[%clk 0:00:39.4]} 53... Rxg2 {[%clk 0:00:21.5]}
54. e8=Q {[%clk 0:00:33.2]} 54... Bxe8 {[%clk 0:00:21.3]} 55. Rxe8 {[%clk
0:00:34.1]} 55... Rxg4 {[%clk 0:00:19.2]} 56. Rc8 {[%clk 0:00:34.2]} 56... Rg2
{[%clk 0:00:18.4]} 57. Kd5 {[%clk 0:00:31.9]} 57... h5 {[%clk 0:00:18.8]} 58.
Ke4 {[%clk 0:00:31.3]} 58... h4 {[%clk 0:00:19.3]} 59. Kf3 {[%clk 0:00:28]}
59... h3 {[%clk 0:00:19.6]} 60. Rc4 {[%clk 0:00:23.2]} 60... g5 {[%clk 0:00:19]}
61. Rc7+ {[%clk 0:00:18.2]} 61... Kg6 {[%clk 0:00:18.9]} 62. Bd6 {[%clk
0:00:18.4]} 62... g4+ {[%clk 0:00:18.6]} 63. Ke3 {[%clk 0:00:18.1]} 63... h2
{[%clk 0:00:16.9]} 64. Bxh2 {[%clk 0:00:17.9]} 64... Rxh2 {[%clk 0:00:17.8]} 65.
Kf4 {[%clk 0:00:18.3]} 65... Rg2 {[%clk 0:00:18.3]} 66. Rc6+ {[%clk 0:00:16.8]}
66... Kf7 {[%clk 0:00:18.6]} 67. Kf5 {[%clk 0:00:14.3]} 67... Ke7 {[%clk
0:00:18.7]} 68. Ke5 {[%clk 0:00:14.7]} 68... Kd7 {[%clk 0:00:18.9]} 69. Rc3
{[%clk 0:00:14.8]} 69... Rf2 {[%clk 0:00:18.7]} 70. Ke4 {[%clk 0:00:13.3]} 70...
Ke6 {[%clk 0:00:19]} 71. Rc6+ {[%clk 0:00:12.9]} 71... Kf7 {[%clk 0:00:19.2]}
72. Kd3 {[%clk 0:00:12.9]} 72... Kg7 {[%clk 0:00:18.3]} 73. Ke3 {[%clk
0:00:11.6]} 73... Rg2 {[%clk 0:00:17.3]} 74. Kf4 {[%clk 0:00:11.5]} 74... Kf7
{[%clk 0:00:16.6]} 75. Ke5 {[%clk 0:00:11.3]} 75... Ke8 {[%clk 0:00:16.7]} 76.
Rc7 {[%clk 0:00:11.2]} 76... Kd8 {[%clk 0:00:17.1]} 77. Rc3 {[%clk 0:00:11.3]}
77... Kd7 {[%clk 0:00:17.2]} 78. Kd5 {[%clk 0:00:11.2]} 78... Rf2 {[%clk
0:00:16.7]} 79. Ke4 {[%clk 0:00:10.3]} 79... g3 {[%clk 0:00:16.6]} 80. Kd3
{[%clk 0:00:07.4]} 80... g2 {[%clk 0:00:16.6]} 81. Rxc2 {[%clk 0:00:06.5]} 81...
Rxc2 {[%clk 0:00:16.9]} 82. Kxc2 {[%clk 0:00:07.4]} 82... g1=Q {[%clk
0:00:17.8]} 0-1

[Event "Early-Titled-Tuesday-Blitz-February-20-2024"]
[Site "Chess.com"]
[Date "2024.02.20"]
[Round "8"]
[White "Manukyan_Artak"]
[Black "Arystanner"]
[Result "1/2-1/2"]
[WhiteElo "2559"]
[BlackElo "2753"]
[TimeControl "180+1"]
[EndTime "9:32:35 PST"]
[Termination "Game drawn - insufficient material"]

1. e4 {[%clk 0:02:52.1]} 1... c5 {[%clk 0:03:00]} 2. Nf3 {[%clk 0:02:51.9]} 2...
e6 {[%clk 0:02:59.8]} 3. c3 {[%clk 0:02:52]} 3... d5 {[%clk 0:02:58.9]} 4. e5
{[%clk 0:02:52.1]} 4... d4 {[%clk 0:02:58.4]} 5. cxd4 {[%clk 0:02:51.9]} 5...
cxd4 {[%clk 0:02:58.5]} 6. Bb5+ {[%clk 0:02:52.5]} 6... Bd7 {[%clk 0:02:55.5]}
7. Nxd4 {[%clk 0:02:52.2]} 7... Bxb5 {[%clk 0:02:53.3]} 8. Nxb5 {[%clk
0:02:53.1]} 8... Nc6 {[%clk 0:02:49.7]} 9. O-O {[%clk 0:02:47.3]} 9... a6 {[%clk
0:02:47.9]} 10. N5c3 {[%clk 0:02:46.7]} 10... Nxe5 {[%clk 0:02:48.1]} 11. d4
{[%clk 0:02:44.6]} 11... Nc6 {[%clk 0:02:46.9]} 12. d5 {[%clk 0:02:44.3]} 12...
exd5 {[%clk 0:02:46.1]} 13. Nxd5 {[%clk 0:02:44.1]} 13... Bd6 {[%clk 0:02:37.6]}
14. Qg4 {[%clk 0:02:35.3]} 14... Be5 {[%clk 0:02:07.2]} 15. Nbc3 {[%clk
0:02:30.8]} 15... Nf6 {[%clk 0:02:02]} 16. Nxf6+ {[%clk 0:02:22.5]} 16... Qxf6
{[%clk 0:02:02]} 17. Nd5 {[%clk 0:02:17]} 17... Qg6 {[%clk 0:02:00.3]} 18. Qxg6
{[%clk 0:02:14.5]} 18... hxg6 {[%clk 0:02:00.4]} 19. Bf4 {[%clk 0:02:07.7]}
19... O-O-O {[%clk 0:01:59.4]} 20. Bxe5 {[%clk 0:02:05.9]} 20... Nxe5 {[%clk
0:02:00.3]} 21. Rfd1 {[%clk 0:01:59.5]} 21... Kb8 {[%clk 0:02:00.2]} 22. Ne3
{[%clk 0:01:55.3]} 22... g5 {[%clk 0:02:00.3]} 23. h3 {[%clk 0:01:53.6]} 23...
Nd3 {[%clk 0:01:59.6]} 24. Rd2 {[%clk 0:01:50.7]} 24... Nf4 {[%clk 0:01:49.2]}
25. Rad1 {[%clk 0:01:47.2]} 25... Rxd2 {[%clk 0:01:47.2]} 26. Rxd2 {[%clk
0:01:46.6]} 26... Kc7 {[%clk 0:01:45.3]} 27. Nd5+ {[%clk 0:01:45.5]} 27... Nxd5
{[%clk 0:01:45.8]} 28. Rxd5 {[%clk 0:01:46.4]} 28... f6 {[%clk 0:01:46.6]} 29.
Kf1 {[%clk 0:01:44.4]} 29... Rh4 {[%clk 0:01:45.9]} 30. f3 {[%clk 0:01:35.9]}
30... Rc4 {[%clk 0:01:41.1]} 31. Ke2 {[%clk 0:01:32.7]} 31... Kc6 {[%clk
0:01:41]} 32. Rd2 {[%clk 0:01:31.9]} 32... b5 {[%clk 0:01:34.4]} 33. b3 {[%clk
0:01:30]} 33... Rc1 {[%clk 0:01:21.1]} 34. Kd3 {[%clk 0:01:20]} 34... Kd5 {[%clk
0:01:16.3]} 35. Re2 {[%clk 0:01:05.4]} 35... Rg1 {[%clk 0:01:10.1]} 36. Kc3
{[%clk 0:00:48.9]} 36... a5 {[%clk 0:01:08.8]} 37. Kd3 {[%clk 0:00:45.2]} 37...
b4 {[%clk 0:01:07.5]} 38. Rc2 {[%clk 0:00:41.7]} 38... g6 {[%clk 0:01:00.8]} 39.
Ke3 {[%clk 0:00:38.3]} 39... Re1+ {[%clk 0:00:48.8]} 40. Kf2 {[%clk 0:00:32.3]}
40... Ra1 {[%clk 0:00:49]} 41. Ke3 {[%clk 0:00:31.9]} 41... f5 {[%clk
0:00:49.2]} 42. Kf2 {[%clk 0:00:30.8]} 42... Kd4 {[%clk 0:00:48.4]} 43. Ke2
{[%clk 0:00:30.3]} 43... Rg1 {[%clk 0:00:45.3]} 44. Kf2 {[%clk 0:00:29.6]} 44...
Ra1 {[%clk 0:00:44.9]} 45. Ke2 {[%clk 0:00:29.8]} 45... f4 {[%clk 0:00:44.9]}
46. Rc4+ {[%clk 0:00:24.8]} 46... Kd5 {[%clk 0:00:43.9]} 47. Rc2 {[%clk
0:00:25.7]} 47... Ke6 {[%clk 0:00:33.9]} 48. Kd3 {[%clk 0:00:23.9]} 48... Kd5
{[%clk 0:00:30.1]} 49. Ke2 {[%clk 0:00:22.6]} 49... Rb1 {[%clk 0:00:27.5]} 50.
Rd2+ {[%clk 0:00:16.7]} 50... Kc5 {[%clk 0:00:24.6]} 51. Kd3 {[%clk 0:00:15.1]}
51... Re1 {[%clk 0:00:20.8]} 52. Re2 {[%clk 0:00:12.7]} 52... Rg1 {[%clk
0:00:20.2]} 53. Ke4 {[%clk 0:00:11.8]} 53... Kd6 {[%clk 0:00:16.7]} 54. Rd2+
{[%clk 0:00:10.7]} 54... Ke6 {[%clk 0:00:16.6]} 55. Kd4 {[%clk 0:00:11.3]} 55...
Rc1 {[%clk 0:00:16.2]} 56. Ke4 {[%clk 0:00:10.6]} 56... Rc3 {[%clk 0:00:15.1]}
57. Kd4 {[%clk 0:00:10.6]} 57... Rc1 {[%clk 0:00:15]} 58. Ke4 {[%clk 0:00:10.9]}
58... Rc5 {[%clk 0:00:15.7]} 59. Kd3 {[%clk 0:00:08.3]} 59... Ke5 {[%clk
0:00:13.5]} 60. Re2+ {[%clk 0:00:08]} 60... Kd5 {[%clk 0:00:14.1]} 61. Re8
{[%clk 0:00:07.1]} 61... Rc3+ {[%clk 0:00:14.5]} 62. Kd2 {[%clk 0:00:07.4]}
62... a4 {[%clk 0:00:15.4]} 63. Rd8+ {[%clk 0:00:06.6]} 63... Ke5 {[%clk
0:00:15.2]} 64. bxa4 {[%clk 0:00:06.1]} 64... Ra3 {[%clk 0:00:15.3]} 65. Re8+
{[%clk 0:00:04.8]} 65... Kf6 {[%clk 0:00:15.1]} 66. Rf8+ {[%clk 0:00:04.9]}
66... Ke7 {[%clk 0:00:14.8]} 67. Ra8 {[%clk 0:00:04.5]} 67... Rxa2+ {[%clk
0:00:14.7]} 68. Kd3 {[%clk 0:00:05]} 68... Rxg2 {[%clk 0:00:15]} 69. Kc4 {[%clk
0:00:05.4]} 69... Rb2 {[%clk 0:00:14.7]} 70. a5 {[%clk 0:00:05.8]} 70... Kd6
{[%clk 0:00:11]} 71. Ra6+ {[%clk 0:00:06]} 71... Ke5 {[%clk 0:00:06.9]} 72. Rxg6
{[%clk 0:00:06.9]} 72... Rb1 {[%clk 0:00:05.7]} 73. Rxg5+ {[%clk 0:00:06.8]}
73... Kf6 {[%clk 0:00:05.5]} 74. Rb5 {[%clk 0:00:07.5]} 74... Rf1 {[%clk
0:00:04.4]} 75. Rxb4 {[%clk 0:00:06.7]} 75... Rxf3 {[%clk 0:00:04.8]} 76. a6
{[%clk 0:00:07]} 76... Ra3 {[%clk 0:00:05]} 77. Kb5 {[%clk 0:00:07.8]} 77... f3
{[%clk 0:00:05.3]} 78. Kb6 {[%clk 0:00:05.7]} 78... Ke5 {[%clk 0:00:03.2]} 79.
a7 {[%clk 0:00:04.8]} 79... f2 {[%clk 0:00:03.7]} 80. Rb1 {[%clk 0:00:05]} 80...
Kf4 {[%clk 0:00:02.9]} 81. Kb7 {[%clk 0:00:05.2]} 81... Kg3 {[%clk 0:00:01.9]}
82. a8=Q {[%clk 0:00:04.8]} 82... Rxa8 {[%clk 0:00:02.6]} 83. Kxa8 {[%clk
0:00:05.7]} 83... Kxh3 {[%clk 0:00:03.4]} 84. Kb7 {[%clk 0:00:06]} 84... Kg2
{[%clk 0:00:04.3]} 85. Kc6 {[%clk 0:00:06.4]} 85... f1=Q {[%clk 0:00:05.2]} 86.
Rxf1 {[%clk 0:00:06.6]} 86... Kxf1 {[%clk 0:00:06.1]} 1/2-1/2

[Event "Early-Titled-Tuesday-Blitz-February-20-2024"]
[Site "Chess.com"]
[Date "2024.02.20"]
[Round "8"]
[White "ChessQueen"]
[Black "Hikaru"]
[Result "0-1"]
[WhiteElo "2744"]
[BlackElo "3255"]
[TimeControl "180+1"]
[EndTime "9:33:19 PST"]
[Termination "Hikaru won by checkmate"]

1. e4 {[%clk 0:03:00.9]} 1... a5 {[%clk 0:03:00.9]} 2. d4 {[%clk 0:02:59.8]}
2... c6 {[%clk 0:03:01.8]} 3. d5 {[%clk 0:02:58.7]} 3... d6 {[%clk 0:02:55.9]}
4. c4 {[%clk 0:02:55.3]} 4... g6 {[%clk 0:02:55.2]} 5. Nc3 {[%clk 0:02:54.4]}
5... Bg7 {[%clk 0:02:55.2]} 6. Nf3 {[%clk 0:02:52.1]} 6... Na6 {[%clk
0:02:53.9]} 7. Be3 {[%clk 0:02:45.5]} 7... Nf6 {[%clk 0:02:50.4]} 8. Bd3 {[%clk
0:02:38]} 8... e5 {[%clk 0:02:37.2]} 9. h3 {[%clk 0:02:31.3]} 9... O-O {[%clk
0:02:35.1]} 10. O-O {[%clk 0:02:28.7]} 10... Nh5 {[%clk 0:02:34.2]} 11. Na4
{[%clk 0:02:24.3]} 11... c5 {[%clk 0:02:32.5]} 12. Qd2 {[%clk 0:02:18.7]} 12...
f5 {[%clk 0:02:30.3]} 13. Bg5 {[%clk 0:02:14.2]} 13... Qc7 {[%clk 0:02:27.9]}
14. exf5 {[%clk 0:01:52.4]} 14... gxf5 {[%clk 0:02:28.8]} 15. Be2 {[%clk
0:01:42.7]} 15... Nf6 {[%clk 0:02:28.8]} 16. Nc3 {[%clk 0:01:37.6]} 16... Bd7
{[%clk 0:02:26.9]} 17. Bh6 {[%clk 0:01:34.1]} 17... Qd8 {[%clk 0:02:11.9]} 18.
Qg5 {[%clk 0:01:31.2]} 18... Rf7 {[%clk 0:02:12.3]} 19. Nh4 {[%clk 0:01:30.8]}
19... Qf8 {[%clk 0:02:06.6]} 20. Nxf5 {[%clk 0:01:15.2]} 20... Bxf5 {[%clk
0:02:06.7]} 21. Bxg7 {[%clk 0:01:15.8]} 21... Qxg7 {[%clk 0:02:07.6]} 22. Qxf5
{[%clk 0:01:16.2]} 22... Nxd5 {[%clk 0:02:08.4]} 23. Qg4 {[%clk 0:01:07.8]}
23... Nf4 {[%clk 0:02:08.7]} 24. Bf3 {[%clk 0:01:00.6]} 24... Nb4 {[%clk
0:02:08]} 25. Rad1 {[%clk 0:00:57.5]} 25... Rd8 {[%clk 0:02:07.3]} 26. Ne4
{[%clk 0:00:51.3]} 26... Nbd3 {[%clk 0:01:54.8]} 27. b3 {[%clk 0:00:49.9]} 27...
Kh8 {[%clk 0:01:41.6]} 28. Qxg7+ {[%clk 0:00:43.4]} 28... Rxg7 {[%clk
0:01:42.5]} 29. Kh2 {[%clk 0:00:42.7]} 29... d5 {[%clk 0:01:28.1]} 30. cxd5
{[%clk 0:00:41.1]} 30... Rxd5 {[%clk 0:01:24.7]} 31. g3 {[%clk 0:00:35.2]} 31...
Ne6 {[%clk 0:01:24.7]} 32. Nc3 {[%clk 0:00:21.1]} 32... Rd4 {[%clk 0:01:07.3]}
33. Nb5 {[%clk 0:00:20.9]} 33... Rdd7 {[%clk 0:01:07.6]} 34. Bg4 {[%clk
0:00:21]} 34... Rge7 {[%clk 0:01:08.1]} 35. Bxe6 {[%clk 0:00:19.9]} 35... Rxe6
{[%clk 0:01:09]} 36. Rd2 {[%clk 0:00:20]} 36... e4 {[%clk 0:01:09.2]} 37. Rfd1
{[%clk 0:00:19.8]} 37... Rf7 {[%clk 0:01:09.7]} 38. Kg2 {[%clk 0:00:16.9]} 38...
Ref6 {[%clk 0:01:10.3]} 39. Rf1 {[%clk 0:00:15.2]} 39... Rg6 {[%clk 0:01:06.1]}
40. Nc3 {[%clk 0:00:14.8]} 40... Re7 {[%clk 0:01:01.8]} 41. Nxe4 {[%clk
0:00:14.7]} 41... Nf4+ {[%clk 0:01:02]} 42. Kf3 {[%clk 0:00:14.6]} 42... Nxh3
{[%clk 0:01:02.7]} 43. Nxc5 {[%clk 0:00:14]} 43... Rf7+ {[%clk 0:01:03.4]} 44.
Kg2 {[%clk 0:00:14]} 44... Nf4+ {[%clk 0:01:04.1]} 45. Kg1 {[%clk 0:00:13.8]}
45... h5 {[%clk 0:01:00.5]} 46. Rfd1 {[%clk 0:00:13]} 46... h4 {[%clk
0:01:00.3]} 47. Rd8+ {[%clk 0:00:13.1]} 47... Kg7 {[%clk 0:01:00.9]} 48. R1d7
{[%clk 0:00:13.4]} 48... hxg3 {[%clk 0:01:01.3]} 49. Rxf7+ {[%clk 0:00:13.7]}
49... Kxf7 {[%clk 0:01:02.2]} 50. fxg3 {[%clk 0:00:14.2]} 50... Rxg3+ {[%clk
0:01:03]} 51. Kf2 {[%clk 0:00:14.9]} 51... Rc3 {[%clk 0:01:02.2]} 52. Nxb7
{[%clk 0:00:14.8]} 52... a4 {[%clk 0:00:57.1]} 53. bxa4 {[%clk 0:00:14.7]} 53...
Ra3 {[%clk 0:00:58]} 54. Nc5 {[%clk 0:00:14.6]} 54... Kf6 {[%clk 0:00:56.8]} 55.
Rd4 {[%clk 0:00:13.3]} 55... Ke5 {[%clk 0:00:54.3]} 56. Re4+ {[%clk 0:00:13.3]}
56... Kf5 {[%clk 0:00:55]} 57. Rc4 {[%clk 0:00:12.7]} 57... Nd5 {[%clk
0:00:53.3]} 58. Ke2 {[%clk 0:00:10.7]} 58... Ke5 {[%clk 0:00:51.1]} 59. Kd2
{[%clk 0:00:10.6]} 59... Rxa2+ {[%clk 0:00:51.2]} 60. Kc1 {[%clk 0:00:09.5]}
60... Ra3 {[%clk 0:00:52.1]} 61. Kb2 {[%clk 0:00:09.9]} 61... Rh3 {[%clk
0:00:52.7]} 62. a5 {[%clk 0:00:10]} 62... Kd6 {[%clk 0:00:52.5]} 63. Nb3 {[%clk
0:00:09.4]} 63... Nc7 {[%clk 0:00:51.7]} 64. Rd4+ {[%clk 0:00:08.7]} 64... Kc6
{[%clk 0:00:52.2]} 65. Rc4+ {[%clk 0:00:09.3]} 65... Kb7 {[%clk 0:00:52.8]} 66.
Nc5+ {[%clk 0:00:09.9]} 66... Ka7 {[%clk 0:00:53.3]} 67. Nb3 {[%clk 0:00:09]}
67... Nb5 {[%clk 0:00:53.2]} 68. Rc5 {[%clk 0:00:09.1]} 68... Nd6 {[%clk
0:00:53.6]} 69. Rc7+ {[%clk 0:00:08.6]} 69... Kb8 {[%clk 0:00:54.3]} 70. Rc6
{[%clk 0:00:08.9]} 70... Ne4 {[%clk 0:00:54.5]} 71. a6 {[%clk 0:00:08.9]} 71...
Ka7 {[%clk 0:00:54.8]} 72. Nc5 {[%clk 0:00:08.9]} 72... Nd2 {[%clk 0:00:45.7]}
73. Kc2 {[%clk 0:00:08.9]} 73... Nc4 {[%clk 0:00:45.2]} 74. Rc7+ {[%clk
0:00:07.5]} 74... Kb6 {[%clk 0:00:45.8]} 75. Rb7+ {[%clk 0:00:07.4]} 75... Kxc5
{[%clk 0:00:45.9]} 76. a7 {[%clk 0:00:08]} 76... Ra3 {[%clk 0:00:46]} 77. Rc7+
{[%clk 0:00:06.3]} 77... Kb5 {[%clk 0:00:46.2]} 78. Rb7+ {[%clk 0:00:06.7]}
78... Kc6 {[%clk 0:00:45.9]} 79. Rb4 {[%clk 0:00:06.7]} 79... Nb6 {[%clk
0:00:44.7]} 80. Rb3 {[%clk 0:00:06.4]} 80... Rxa7 {[%clk 0:00:45]} 81. Rh3
{[%clk 0:00:06.9]} 81... Kc5 {[%clk 0:00:45.3]} 82. Rh5+ {[%clk 0:00:07.2]}
82... Kb4 {[%clk 0:00:45.2]} 83. Kd3 {[%clk 0:00:07.4]} 83... Rd7+ {[%clk
0:00:45.6]} 84. Ke4 {[%clk 0:00:07.8]} 84... Nc4 {[%clk 0:00:46.5]} 85. Rh4
{[%clk 0:00:07.3]} 85... Re7+ {[%clk 0:00:45.9]} 86. Kd5 {[%clk 0:00:07.6]}
86... Re5+ {[%clk 0:00:46.2]} 87. Kc6 {[%clk 0:00:07.7]} 87... Rg5 {[%clk
0:00:47]} 88. Rf4 {[%clk 0:00:07.4]} 88... Rg6+ {[%clk 0:00:44.3]} 89. Kd7
{[%clk 0:00:07.8]} 89... Kc5 {[%clk 0:00:44.2]} 90. Rf5+ {[%clk 0:00:08]} 90...
Kd4 {[%clk 0:00:44.9]} 91. Rf1 {[%clk 0:00:08.3]} 91... Ne3 {[%clk 0:00:44.6]}
92. Re1 {[%clk 0:00:08.3]} 92... Ra6 {[%clk 0:00:45.3]} 93. Re2 {[%clk
0:00:08.2]} 93... Nf5 {[%clk 0:00:45.1]} 94. Re1 {[%clk 0:00:07.6]} 94... Kd5
{[%clk 0:00:45.7]} 95. Rd1+ {[%clk 0:00:07.8]} 95... Ke5 {[%clk 0:00:46]} 96.
Re1+ {[%clk 0:00:07.9]} 96... Kd5 {[%clk 0:00:46.7]} 97. Rd1+ {[%clk 0:00:08.4]}
97... Nd4 {[%clk 0:00:47.6]} 98. Ke7 {[%clk 0:00:08.3]} 98... Rh6 {[%clk
0:00:48.1]} 99. Kd7 {[%clk 0:00:07.2]} 99... Rh7+ {[%clk 0:00:48.4]} 100. Kd8
{[%clk 0:00:07.6]} 100... Kc5 {[%clk 0:00:49.1]} 101. Ke8 {[%clk 0:00:07.5]}
101... Nf5 {[%clk 0:00:49.2]} 102. Rd2 {[%clk 0:00:07.2]} 102... Nd6+ {[%clk
0:00:49.7]} 103. Kf8 {[%clk 0:00:07.4]} 103... Kc6 {[%clk 0:00:49.3]} 104. Kg8
{[%clk 0:00:07.1]} 104... Rd7 {[%clk 0:00:46.8]} 105. Rg2 {[%clk 0:00:06.9]}
105... Kd5 {[%clk 0:00:45.4]} 106. Rg7 {[%clk 0:00:06.3]} 106... Rd8+ {[%clk
0:00:45.7]} 107. Kh7 {[%clk 0:00:06.6]} 107... Ne4 {[%clk 0:00:46.2]} 108. Ra7
{[%clk 0:00:06.2]} 108... Rd6 {[%clk 0:00:45.6]} 109. Kg7 {[%clk 0:00:05.7]}
109... Ke5 {[%clk 0:00:45.3]} 110. Ra5+ {[%clk 0:00:05.8]} 110... Kf4 {[%clk
0:00:45.7]} 111. Rb5 {[%clk 0:00:05.6]} 111... Ra6 {[%clk 0:00:45.1]} 112. Rb1
{[%clk 0:00:04.3]} 112... Ng3 {[%clk 0:00:43]} 113. Kf7 {[%clk 0:00:01.6]}
113... Ra7+ {[%clk 0:00:43.9]} 114. Ke8 {[%clk 0:00:02]} 114... Ne2 {[%clk
0:00:44.4]} 115. Kd8 {[%clk 0:00:02.3]} 115... Ke5 {[%clk 0:00:44.8]} 116. Re1
{[%clk 0:00:02.6]} 116... Kd6 {[%clk 0:00:45.6]} 117. Rd1+ {[%clk 0:00:02.4]}
117... Kc6 {[%clk 0:00:46.1]} 118. Ke8 {[%clk 0:00:02]} 118... Nf4 {[%clk
0:00:46.3]} 119. Kf8 {[%clk 0:00:02.3]} 119... Ng6+ {[%clk 0:00:46.5]} 120. Kg8
{[%clk 0:00:02.8]} 120... Ne5 {[%clk 0:00:47.3]} 121. Rc1+ {[%clk 0:00:03]}
121... Kd6 {[%clk 0:00:47.8]} 122. Rb1 {[%clk 0:00:02.6]} 122... Ke6 {[%clk
0:00:48.7]} 123. Rb6+ {[%clk 0:00:02.7]} 123... Kf5 {[%clk 0:00:49.4]} 124. Rb5
{[%clk 0:00:03.5]} 124... Re7 {[%clk 0:00:49.3]} 125. Kf8 {[%clk 0:00:03.7]}
125... Re6 {[%clk 0:00:50]} 126. Rb7 {[%clk 0:00:03.3]} 126... Kf6 {[%clk
0:00:49.9]} 127. Rb1 {[%clk 0:00:03.1]} 127... Ng6+ {[%clk 0:00:48.6]} 128. Kg8
{[%clk 0:00:03.2]} 128... Re8+ {[%clk 0:00:49.5]} 129. Kh7 {[%clk 0:00:03.6]}
129... Rh8# {[%clk 0:00:50.4]} 0-1